[Event "EYCC 2017"]
[Site "Mamaia"]
[Date "2017.09.08"]
[Round "4"]
[White "Miroshnik, Ekaterina"]
[Black "Mkrtchyan, Mariam"]
[Result "0-1"]
[ECO "E19"]
[WhiteElo "2006"]
[BlackElo "1794"]
[Annotator "NA"]
[PlyCount "134"]
[EventDate "2017.??.??"]
[EventType "swiss"]
[EventCountry "ROU"]
[SourceTitle "playchess.com"]
[Source "ChessBase"]
[SourceQuality "1"]
[TimeControl "40/5400+30:1800+30"]

1. d4 {[%emt 0:00:00]} Nf6 {[%emt 0:00:06]} 2. c4 {[%emt 0:00:00]} e6 {[%emt 0:00:07]} 3. Nf3 {[%emt 0:00:00]} b6 {[%emt 0:00:07]} 4. g3 {[%emt 0:01:46]} Bb7 {[%emt 0:00:06]} 5. Bg2 {[%emt 0:00:04]} Be7 {[%emt 0:04:07]} 6. O-O {[%emt 0:00:07]} O-O {[%emt 0:00:01]} 7. Nc3 {[%emt 0:00:33]} Ne4 {[%emt 0:00:14]} 8. Qc2 {[%emt 0:04:08]} Nxc3 {[%emt 0:00:35]} 9. Qxc3 {[%emt 0:01:02]} f5 {[%emt 0:00:53]} 10. Rd1 {[%emt 0:05:06]} d6 {[%emt 0:08:25]} 11. b4 {[%emt 0:10:41]} Nd7 {[%emt 0:04:17]} 12. Ng5 {[%emt 0:09:20]} Bxg5 {[%emt 0:05:32]} 13. Bxb7 {[%emt 0:00:54]} Rb8 {[%emt 0:00:54]} 14. Bxg5 {[%emt 0:06:46]} Qxg5 {[%emt 0:00:22]} 15. f4 {[%emt 0:02:33]} Qe7 {[%emt 0:07:44]} 16. Bc6 {[%emt 0:04:08]} Nf6 {[%emt 0:08:21]} 17. b5 {[%emt 0:10:57]} d5 {[%emt 0:08:28]} 18. Rab1 {[%emt 0:08:18]} Qd6 {[%emt 0:03:54]} 19. Qc2 {[%emt 0:10:46]} Ne4 {[%emt 0:03:56]} 20. Rbc1 {[%emt 0:05:34]} a5 {[%emt 0:02:15]} 21. cxd5 {[%emt 0:02:34]} exd5 {[%emt 0:00:08]} 22. Qb3 {[%emt 0:00:48]} Rfd8 {[%emt 0:04:35]} 23. Rd3 {[%emt 0:02:24]} Kh8 {[%emt 0:03:56]} 24. Rf1 {[%emt 0:02:03]} Qe6 {[%emt 0:02:03]} 25. Re3 {[%emt 0:08:03]} Rd6 {[%emt 0:01:34]} 26. Qd3 {[%emt 0:01:38]} Qg6 {[%emt 0:02:43]} 27. Kg2 {[%emt 0:01:27]} Qh5 {[%emt 0:01:38]} 28. Rh1 {[%emt 0:01:10]} Rf8 {[%emt 0:01:57]} 29. Bb7 {[%emt 0:00:49]} Rb8 {[%emt 0:07:08]} 30. Bc6 {[%emt 0:00:31]} Rg8 {[%emt 0:00:01]} 31. h4 {[%emt 0:00:41]} Qf7 {[%emt 0:03:11]} 32. Qc2 {[%emt 0:00:28]} g6 {[%emt 0:04:06]} 33. Bb7 {[%emt 0:00:35]} Rb8 {[%emt 0:01:18]} 34. Ba6 {[%emt 0:00:29]} Rd7 {[%emt 0:04:18]} 35. Rc1 {[%emt 0:00:27]} Nd6 {[%emt 0:04:26]} 36. Qd3 {[%emt 0:00:23]} Nc4 {[%emt 0:00:33]} 37. Re5 {[%emt 0:00:38]} Nxe5 {[%emt 0:02:49]} 38. dxe5 {[%emt 0:00:02]} d4 {[%emt 0:01:43]} 39. Qc4 {[%emt 0:00:35]} Qxc4 {[%emt 0:00:46]} 40. Rxc4 {[%emt 0:00:00]} Kg8 {[%emt 0:00:39]} 41. h5 {[%emt 0:11:43]} gxh5 {[%emt 0:09:54]} 42. Rc6 {[%emt 0:02:19]} Rbd8 {[%emt 0:09:10]} 43. Kh3 {[%emt 0:09:58]} Rg7 {[%emt 0:02:03]} 44. Rf6 {[%emt 0:06:17]} d3 {[%emt 0:03:43]} 45. exd3 {[%emt 0:00:01]} Rxd3 {[%emt 0:00:05]} 46. Rxf5 {[%emt 0:00:26]} Rdxg3+ {[%emt 0:02:21]} 47. Kh2 {[%emt 0:00:06]} Rg2+ {[%emt 0:00:12]} 48. Kh1 {[%emt 0:02:11]} Rg1+ {[%emt 0:02:12]} 49. Kh2 {[%emt 0:00:07]} R1g2+ {[%emt 0:01:27]} 50. Kh1 {[%emt 0:00:01]} R2g4 {[%emt 0:00:41]} 51. Rxh5 {[%emt 0:00:05]} Rxf4 {[%emt 0:00:04]} 52. Bb7 {[%emt 0:01:09]} Kf8 {[%emt 0:00:20]} 53. e6 {[%emt 0:02:05]} Ke7 {[%emt 0:00:13]} 54. Bc8 {[%emt 0:01:06]} Ra4 {[%emt 0:01:02]} 55. Rh2 {[%emt 0:00:39]} Rb4 {[%emt 0:00:04]} 56. Rh5 {[%emt 0:00:13]} Rb2 {[%emt 0:00:47]} 57. Rd5 {[%emt 0:00:41]} Rxa2 58. Rd7+ {[%emt 0:00:19]} Kf6 {[%emt 0:02:42]} 59. Rd5 {[%emt 0:00:59]} Ra4 {[%emt 0:00:35]} 60. Rh5 {[%emt 0:00:19]} Rd4 {[%emt 0:00:34]} 61. Kh2 {[%emt 0:00:28]} a4 {[%emt 0:00:13]} 62. e7 {[%emt 0:00:36]} Kxe7 {[%emt 0:00:26]} 63. Re5+ {[%emt 0:00:31]} Kd6 {[%emt 0:00:16]} 64. Re3 {[%emt 0:00:25]} Rh4+ {[%emt 0:00:23]} 65. Bh3 {[%emt 0:00:07]} Kc5 {[%emt 0:00:04]} 66. Rc3+ {[%emt 0:00:26]} Kxb5 {[%emt 0:00:05]} 67. Rc5+ {[%emt 0:01:12]} Kxc5 {[%emt 0:00:19]} 0-1

[Event "EYCC 2017"]
[Site "Mamaia"]
[Date "2017.09.08"]
[Round "4"]
[White "Lazavik, Denis"]
[Black "Suleymanli, Aydin"]
[Result "0-1"]
[ECO "D14"]
[WhiteElo "1989"]
[BlackElo "2351"]
[Annotator "NA"]
[PlyCount "76"]
[EventDate "2017.??.??"]
[EventType "swiss"]
[EventCountry "ROU"]
[SourceTitle "playchess.com"]
[Source "ChessBase"]
[SourceQuality "1"]
[TimeControl "40/5400+30:1800+30"]

1. d4 {[%emt 0:00:00]} d5 {[%emt 0:00:06]} 2. c4 {[%emt 0:00:12]} c6 {[%emt 0:00:03]} 3. cxd5 {[%emt 0:00:43]} cxd5 {[%emt 0:00:06]} 4. Nc3 {[%emt 0:01:20]} Nc6 {[%emt 0:14:06]} 5. Nf3 {[%emt 0:01:32]} Nf6 {[%emt 0:00:44]} 6. Bf4 {[%emt 0:01:07]} Bf5 {[%emt 0:00:28]} 7. e3 {[%emt 0:01:02]} e6 {[%emt 0:01:57]} 8. Bb5 {[%emt 0:01:27]} Bd6 {[%emt 0:13:35]} 9. Ne5 {[%emt 0:05:07]} Rc8 {[%emt 0:11:29]} 10. Qa4 {[%emt 0:04:50]} Bxe5 {[%emt 0:01:08]} 11. dxe5 {[%emt 0:01:13]} Nd7 {[%emt 0:01:05]} 12. O-O {[%emt 0:02:19]} a6 {[%emt 0:01:20]} 13. Bxc6 {[%emt 0:13:24]} Rxc6 {[%emt 0:04:46]} 14. Rfd1 {[%emt 0:01:30]} Rc4 {[%emt 0:21:13]} 15. Qa3 {[%emt 0:00:47]} g5 {[%emt 0:00:44]} 16. Bg3 {[%emt 0:01:11]} h5 {[%emt 0:00:24]} 17. f3 {[%emt 0:01:03]} Qe7 {[%emt 0:02:48]} 18. Qb3 {[%emt 0:03:06]} h4 {[%emt 0:04:37]} 19. Be1 {[%emt 0:01:46]} Nxe5 {[%emt 0:01:01]} 20. Nxd5 {[%emt 0:03:50]} exd5 {[%emt 0:00:17]} 21. Rxd5 {[%emt 0:00:05]} b5 {[%emt 0:03:50]} 22. a4 {[%emt 0:03:06]} Bc2 {[%emt 0:01:16]} 23. Qa3 {[%emt 0:01:14]} b4 {[%emt 0:00:44]} 24. Bxb4 {[%emt 0:00:56]} Qxb4 {[%emt 0:01:20]} 25. Rxe5+ {[%emt 0:00:13]} Kd7 {[%emt 0:00:53]} 26. Qa2 {[%emt 0:03:21]} f6 {[%emt 0:02:15]} 27. Rd5+ {[%emt 0:00:23]} Ke7 {[%emt 0:00:36]} 28. Rd4 {[%emt 0:00:55]} Rxd4 {[%emt 0:00:17]} 29. exd4 {[%emt 0:00:05]} Qxd4+ {[%emt 0:00:06]} 30. Kh1 {[%emt 0:00:05]} h3 {[%emt 0:01:41]} 31. Re1+ {[%emt 0:00:36]} Kf8 {[%emt 0:05:48]} 32. Qe6 {[%emt 0:00:20]} hxg2+ {[%emt 0:00:18]} 33. Kxg2 {[%emt 0:00:05]} Kg7 {[%emt 0:00:23]} 34. Qxa6 {[%emt 0:02:08]} Rxh2+ {[%emt 0:01:06]} 35. Kxh2 {[%emt 0:00:10]} Qf2+ {[%emt 0:00:03]} 36. Kh1 {[%emt 0:00:12]} Qxf3+ {[%emt 0:00:14]} 37. Kg1 {[%emt 0:00:09]} Qg3+ {[%emt 0:00:03]} 38. Kh1 {[%emt 0:00:06]} Qxe1+ {[%emt 0:00:05]} 0-1

[Event "EYCC 2017"]
[Site "Mamaia"]
[Date "2017.09.08"]
[Round "4"]
[White "Nastase, Andreea-Cristina"]
[Black "Shpanko, Nadiia"]
[Result "1/2-1/2"]
[ECO "E46"]
[WhiteElo "1986"]
[BlackElo "2065"]
[Annotator "NA"]
[PlyCount "149"]
[EventDate "2017.??.??"]
[EventType "swiss"]
[EventCountry "ROU"]
[SourceTitle "playchess.com"]
[Source "ChessBase"]
[SourceQuality "1"]
[TimeControl "40/5400+30:1800+30"]

1. d4 {[%emt 0:00:00]} Nf6 {[%emt 0:00:03]} 2. c4 {[%emt 0:00:00]} e6 {[%emt 0:00:06]} 3. Nc3 {[%emt 0:00:00]} Bb4 {[%emt 0:00:05]} 4. e3 {[%emt 0:00:00]} O-O {[%emt 0:00:04]} 5. Nge2 {[%emt 0:00:00]} d5 {[%emt 0:00:42]} 6. a3 {[%emt 0:00:21]} Bd6 {[%emt 0:00:07]} 7. c5 {[%emt 0:00:57]} Be7 {[%emt 0:00:04]} 8. b4 {[%emt 0:00:08]} b6 {[%emt 0:00:27]} 9. Ng3 {[%emt 0:02:20]} a5 {[%emt 0:01:25]} 10. Bb2 {[%emt 0:00:11]} c6 {[%emt 0:02:27]} 11. Bd3 {[%emt 0:06:18]} Nbd7 {[%emt 0:05:44]} 12. f4 {[%emt 0:04:25]} Ba6 {[%emt 0:04:02]} 13. O-O {[%emt 0:02:36]} Qb8 {[%emt 0:03:12]} 14. Bxa6 {[%emt 0:00:44]} Rxa6 {[%emt 0:01:23]} 15. Qe2 {[%emt 0:29:38]} Qb7 {[%emt 0:05:55]} 16. f5 {[%emt 0:13:16]} exf5 {[%emt 0:14:06]} 17. Nxf5 {[%emt 0:00:13]} Re8 {[%emt 0:00:14]} 18. b5 {[%emt 0:09:56]} Raa8 {[%emt 0:02:26]} 19. cxb6 {[%emt 0:07:29]} Nxb6 {[%emt 0:00:47]} 20. e4 {[%emt 0:02:11]} dxe4 {[%emt 0:08:32]} 21. Nxe4 {[%emt 0:00:13]} cxb5 {[%emt 0:06:26]} 22. Nxe7+ {[%emt 0:03:13]} Qxe7 {[%emt 0:00:26]} 23. Nxf6+ {[%emt 0:00:48]} Qxf6 {[%emt 0:00:20]} 24. Qxb5 {[%emt 0:02:30]} Qe6 {[%emt 0:08:16]} 25. Qf5 {[%emt 0:01:54]} Qxf5 {[%emt 0:01:15]} 26. Rxf5 {[%emt 0:01:37]} Nc4 {[%emt 0:00:03]} 27. Bc3 {[%emt 0:04:46]} Re3 {[%emt 0:00:27]} 28. Rc1 {[%emt 0:00:18]} f6 {[%emt 0:05:32]} 29. Rc5 {[%emt 0:02:14]} Nxa3 {[%emt 0:00:35]} 30. Rxa5 {[%emt 0:00:29]} Rxa5 {[%emt 0:00:06]} 31. Bxa5 {[%emt 0:00:03]} Rd3 {[%emt 0:00:51]} 32. Rc8+ {[%emt 0:00:52]} Kf7 {[%emt 0:00:05]} 33. Rd8 {[%emt 0:02:31]} Nc2 {[%emt 0:03:05]} 34. Rd7+ {[%emt 0:00:46]} Kg6 {[%emt 0:01:27]} 35. Bb6 {[%emt 0:00:16]} Rd2 {[%emt 0:02:21]} 36. Re7 {[%emt 0:02:06]} Nxd4 {[%emt 0:00:37]} 37. Bxd4 {[%emt 0:00:05]} Rxd4 {[%emt 0:00:05]} 38. Kf2 {[%emt 0:00:11]} Rd3 {[%emt 0:00:07]} 39. Re4 {[%emt 0:00:38]} h5 {[%emt 0:00:41]} 40. h4 {[%emt 0:00:00]} Kf5 {[%emt 0:00:11]} 41. Ra4 {[%emt 0:03:37]} Rd5 {[%emt 0:02:30]} 42. g3 {[%emt 0:03:13]} Re5 {[%emt 0:00:40]} 43. Kf3 {[%emt 0:04:06]} Rb5 {[%emt 0:00:07]} 44. Rf4+ {[%emt 0:01:06]} Ke6 {[%emt 0:00:18]} 45. Re4+ {[%emt 0:00:50]} Re5 {[%emt 0:00:08]} 46. Ra4 {[%emt 0:00:25]} Re1 {[%emt 0:00:23]} 47. Ra7 {[%emt 0:01:34]} g6 {[%emt 0:00:16]} 48. Ra6+ {[%emt 0:00:13]} Kf5 {[%emt 0:00:11]} 49. Ra5+ {[%emt 0:00:08]} Re5 {[%emt 0:00:07]} 50. Ra4 {[%emt 0:00:59]} g5 {[%emt 0:01:10]} 51. hxg5 {[%emt 0:00:20]} fxg5 {[%emt 0:03:21]} 52. Ra8 {[%emt 0:00:24]} g4+ {[%emt 0:00:22]} 53. Kf2 {[%emt 0:00:16]} Rb5 {[%emt 0:00:39]} 54. Ra2 {[%emt 0:02:51]} Rb3 {[%emt 0:00:35]} 55. Ra5+ {[%emt 0:00:12]} Ke4 {[%emt 0:00:07]} 56. Rxh5 {[%emt 0:02:28]} Rb2+ {[%emt 0:00:06]} 57. Kg1 {[%emt 0:00:04]} Kf3 {[%emt 0:00:11]} 58. Ra5 {[%emt 0:00:04]} Kxg3 {[%emt 0:01:58]} 59. Ra3+ {[%emt 0:00:05]} Kh4 {[%emt 0:00:04]} 60. Rc3 {[%emt 0:00:07]} Re2 {[%emt 0:00:47]} 61. Ra3 {[%emt 0:00:37]} Kg5 {[%emt 0:01:11]} 62. Kf1 {[%emt 0:01:08]} Re4 {[%emt 0:00:21]} 63. Kf2 {[%emt 0:00:45]} Kf4 {[%emt 0:00:12]} 64. Ra2 {[%emt 0:00:44]} Kg5 {[%emt 0:00:29]} 65. Ra3 {[%emt 0:00:06]} Kf4 {[%emt 0:00:18]} 66. Ra2 {[%emt 0:00:05]} Rb4 {[%emt 0:00:04]} 67. Kg2 {[%emt 0:00:43]} g3 {[%emt 0:00:08]} 68. Ra8 {[%emt 0:01:00]} Rb2+ {[%emt 0:00:05]} 69. Kg1 {[%emt 0:00:51]} Rb5 {[%emt 0:00:25]} 70. Kg2 {[%emt 0:00:42]} Rb2+ {[%emt 0:00:06]} 71. Kg1 {[%emt 0:00:03]} g2 {[%emt 0:00:04]} 72. Rf8+ {[%emt 0:00:07]} Kg5 {[%emt 0:00:05]} 73. Rg8+ {[%emt 0:00:04]} Kh6 {[%emt 0:00:10]} 74. Rxg2 {[%emt 0:00:05]} Rxg2+ {[%emt 0:00:03]} 75. Kxg2 {[%emt 0:00:03]} 1/2-1/2

[Event "EYCC 2017"]
[Site "Mamaia"]
[Date "2017.09.08"]
[Round "4"]
[White "Garifullina, Leya"]
[Black "Lehaci, Miruna-Daria"]
[Result "0-1"]
[ECO "C18"]
[WhiteElo "1970"]
[BlackElo "1914"]
[Annotator "NA"]
[PlyCount "94"]
[EventDate "2017.??.??"]
[EventType "swiss"]
[EventCountry "ROU"]
[SourceTitle "playchess.com"]
[Source "ChessBase"]
[SourceQuality "1"]
[TimeControl "40/5400+30:1800+30"]

1. e4 {[%emt 0:00:24]} e6 {[%emt 0:00:03]} 2. d4 {[%emt 0:00:49]} d5 {[%emt 0:00:06]} 3. Nc3 {[%emt 0:00:32]} Bb4 {[%emt 0:00:06]} 4. e5 {[%emt 0:01:38]} c5 {[%emt 0:00:05]} 5. a3 {[%emt 0:00:27]} Bxc3+ {[%emt 0:00:04]} 6. bxc3 {[%emt 0:00:05]} Qc7 {[%emt 0:00:06]} 7. Qg4 {[%emt 0:00:43]} f5 {[%emt 0:00:13]} 8. Qh5+ {[%emt 0:05:16]} g6 {[%emt 0:02:17]} 9. Qf3 {[%emt 0:02:57]} Nc6 {[%emt 0:12:45]} 10. Ne2 {[%emt 0:04:57]} Qa5 {[%emt 0:05:26]} 11. Bd2 {[%emt 0:03:51]} Qb6 {[%emt 0:01:28]} 12. dxc5 {[%emt 0:02:07]} Qb2 {[%emt 0:05:35]} 13. Rc1 {[%emt 0:02:10]} Qxa3 {[%emt 0:04:38]} 14. Qe3 {[%emt 0:02:48]} Nge7 {[%emt 0:07:51]} 15. f4 {[%emt 0:02:25]} Bd7 {[%emt 0:00:44]} 16. Nd4 {[%emt 0:03:30]} Qxc5 {[%emt 0:06:03]} 17. Nxf5 {[%emt 0:04:26]} Qxe3+ {[%emt 0:00:30]} 18. Nxe3 {[%emt 0:00:04]} Kf7 {[%emt 0:02:24]} 19. c4 {[%emt 0:01:50]} d4 {[%emt 0:03:32]} 20. Ng4 {[%emt 0:01:47]} Ng8 {[%emt 0:00:19]} 21. Bd3 {[%emt 0:00:51]} h5 {[%emt 0:04:46]} 22. Nf2 {[%emt 0:00:56]} Nh6 {[%emt 0:00:22]} 23. Ne4 {[%emt 0:02:56]} Nf5 {[%emt 0:01:03]} 24. Kf2 {[%emt 0:02:25]} b6 {[%emt 0:03:45]} 25. c5 {[%emt 0:01:20]} Nce7 {[%emt 0:03:19]} 26. cxb6 {[%emt 0:02:19]} axb6 {[%emt 0:00:09]} 27. Nf6 {[%emt 0:04:55]} Ba4 {[%emt 0:04:26]} 28. c4 {[%emt 0:07:47]} Bb3 {[%emt 0:09:41]} 29. Ne4 {[%emt 0:05:02]} Ra2 {[%emt 0:03:15]} 30. Ke2 {[%emt 0:02:27]} Nc6 {[%emt 0:02:21]} 31. Rb1 {[%emt 0:02:49]} Na5 {[%emt 0:02:26]} 32. Rhc1 {[%emt 0:04:07]} Rc8 {[%emt 0:04:08]} 33. c5 {[%emt 0:02:32]} bxc5 {[%emt 0:00:08]} 34. Nxc5 {[%emt 0:00:25]} Bd5 {[%emt 0:01:22]} 35. Rb5 {[%emt 0:07:33]} Ra8 {[%emt 0:03:46]} 36. Ke1 {[%emt 0:05:01]} Nh4 {[%emt 0:01:10]} 37. Bf1 {[%emt 0:03:36]} Bxg2 {[%emt 0:01:31]} 38. Bxg2 {[%emt 0:01:02]} Nxg2+ {[%emt 0:00:05]} 39. Kd1 {[%emt 0:00:07]} Ne3+ {[%emt 0:00:45]} 40. Bxe3 {[%emt 0:00:00]} dxe3 {[%emt 0:00:05]} 41. Ne4 {[%emt 0:00:56]} Rxh2 {[%emt 0:04:38]} 42. Rc7+ {[%emt 0:00:48]} Kf8 {[%emt 0:01:31]} 43. Ng5 {[%emt 0:01:29]} Nb3 {[%emt 0:03:41]} 44. Nxe6+ {[%emt 0:11:25]} Kg8 {[%emt 0:00:25]} 45. Rxb3 {[%emt 0:01:12]} Ra1+ {[%emt 0:00:10]} 46. Rc1 {[%emt 0:00:26]} e2+ {[%emt 0:00:07]} 47. Kd2 {[%emt 0:00:11]} e1=Q+ {[%emt 0:00:08]} 0-1

[Event "EYCC 2017"]
[Site "Mamaia"]
[Date "2017.09.08"]
[Round "4"]
[White "Ziegenfuss, Antonia"]
[Black "Ince, Safiye Oyku"]
[Result "0-1"]
[ECO "B49"]
[WhiteElo "1956"]
[BlackElo "1737"]
[Annotator "NA"]
[PlyCount "44"]
[EventDate "2017.??.??"]
[EventType "swiss"]
[EventCountry "ROU"]
[SourceTitle "playchess.com"]
[Source "ChessBase"]
[SourceQuality "1"]
[TimeControl "40/5400+30:1800+30"]

1. e4 {[%emt 0:00:00]} c5 {[%emt 0:00:07]} 2. Nf3 {[%emt 0:00:00]} e6 {[%emt 0:00:04]} 3. d4 {[%emt 0:00:00]} cxd4 {[%emt 0:00:06]} 4. Nxd4 {[%emt 0:00:00]} Nc6 {[%emt 0:00:05]} 5. Nc3 {[%emt 0:02:05]} Qc7 {[%emt 0:00:04]} 6. Be3 {[%emt 0:00:31]} a6 {[%emt 0:00:05]} 7. Be2 {[%emt 0:00:33]} b5 {[%emt 0:00:25]} 8. O-O {[%emt 0:01:22]} Nf6 {[%emt 0:00:38]} 9. f3 {[%emt 0:00:57]} Be7 {[%emt 0:03:53]} 10. Qd2 {[%emt 0:05:13]} O-O {[%emt 0:00:21]} 11. Rad1 {[%emt 0:01:14]} Bb7 {[%emt 0:04:33]} 12. Nb3 {[%emt 0:04:43]} Ne5 {[%emt 0:07:07]} 13. Bd4 {[%emt 0:12:53]} b4 {[%emt 0:04:26]} 14. Na4 {[%emt 0:03:14]} d5 {[%emt 0:00:30]} 15. Qf4 {[%emt 0:22:05]} Bd6 {[%emt 0:00:36]} 16. Bc5 {[%emt 0:01:10]} Nc4 {[%emt 0:16:05]} 17. Bxd6 {[%emt 0:03:23]} Nxd6 {[%emt 0:00:03]} 18. Nac5 {[%emt 0:06:05]} Bc8 {[%emt 0:04:12]} 19. Rd4 {[%emt 0:00:48]} Nd7 {[%emt 0:08:47]} 20. Nxd7 {[%emt 0:01:20]} Bxd7 {[%emt 0:00:04]} 21. exd5 {[%emt 0:02:50]} e5 {[%emt 0:00:14]} 22. Rc4 {[%emt 0:12:48]} Qa7+ {[%emt 0:02:10]} 0-1

[Event "EYCC 2017"]
[Site "Mamaia"]
[Date "2017.09.08"]
[Round "4"]
[White "Kirchei, Viktoriia"]
[Black "Sovina, Maria"]
[Result "1-0"]
[ECO "B22"]
[WhiteElo "1943"]
[BlackElo "1675"]
[Annotator "NA"]
[PlyCount "97"]
[EventDate "2017.??.??"]
[EventType "swiss"]
[EventCountry "ROU"]
[SourceTitle "playchess.com"]
[Source "ChessBase"]
[SourceQuality "1"]
[TimeControl "40/5400+30:1800+30"]

1. e4 {[%emt 0:00:00]} c5 {[%emt 0:00:04]} 2. c3 {[%emt 0:00:00]} Nf6 {[%emt 0:00:10]} 3. e5 {[%emt 0:00:00]} Nd5 {[%emt 0:00:07]} 4. d4 {[%emt 0:00:00]} cxd4 {[%emt 0:00:09]} 5. Qxd4 {[%emt 0:00:00]} e6 {[%emt 0:00:34]} 6. Nf3 {[%emt 0:00:07]} Nc6 {[%emt 0:00:55]} 7. Qe4 {[%emt 0:00:53]} d6 {[%emt 0:10:33]} 8. Bb5 {[%emt 0:01:12]} Bd7 {[%emt 0:05:22]} 9. c4 {[%emt 0:01:35]} Nb6 {[%emt 0:07:43]} 10. exd6 {[%emt 0:00:49]} Bxd6 {[%emt 0:00:31]} 11. O-O {[%emt 0:00:06]} a6 {[%emt 0:03:07]} 12. Rd1 {[%emt 0:00:25]} Qc7 {[%emt 0:03:54]} 13. Nc3 {[%emt 0:00:32]} O-O-O {[%emt 0:12:31]} 14. c5 {[%emt 0:24:39]} Bxc5 {[%emt 0:07:37]} 15. Bf4 {[%emt 0:02:55]} e5 {[%emt 0:00:07]} 16. Nxe5 {[%emt 0:06:24]} Nxe5 {[%emt 0:03:53]} 17. Bxe5 {[%emt 0:00:24]} Bxf2+ {[%emt 0:11:03]} 18. Kxf2 {[%emt 0:00:16]} Qc5+ {[%emt 0:00:06]} 19. Qd4 {[%emt 0:03:47]} Qxd4+ {[%emt 0:00:20]} 20. Bxd4 {[%emt 0:00:04]} Bg4 {[%emt 0:01:52]} 21. Bxb6 {[%emt 0:01:18]} Bxd1 {[%emt 0:01:37]} 22. Bxd8 {[%emt 0:00:12]} Rxd8 {[%emt 0:00:05]} 23. Rxd1 {[%emt 0:00:07]} Rxd1 {[%emt 0:00:06]} 24. Nxd1 {[%emt 0:00:04]} axb5 {[%emt 0:00:05]} 25. Nc3 {[%emt 0:00:02]} Kc7 {[%emt 0:00:03]} 26. Nxb5+ {[%emt 0:00:04]} Kc6 {[%emt 0:00:03]} 27. Nd4+ {[%emt 0:00:08]} Kd5 {[%emt 0:00:04]} 28. Ke3 {[%emt 0:00:04]} g6 {[%emt 0:00:04]} 29. Nf3 {[%emt 0:00:17]} h6 {[%emt 0:00:05]} 30. Kd3 {[%emt 0:00:13]} b5 {[%emt 0:00:04]} 31. Kc3 {[%emt 0:00:48]} Kc5 {[%emt 0:00:04]} 32. Ne5 {[%emt 0:00:06]} f6 {[%emt 0:00:05]} 33. Nxg6 {[%emt 0:00:03]} b4+ {[%emt 0:00:03]} 34. Kd3 {[%emt 0:00:08]} Kd5 {[%emt 0:00:01]} 35. Ne7+ {[%emt 0:00:09]} Ke6 {[%emt 0:00:05]} 36. Nc6 {[%emt 0:00:04]} Kd6 {[%emt 0:00:03]} 37. Nxb4 {[%emt 0:00:04]} Kc5 {[%emt 0:00:03]} 38. Nc2 {[%emt 0:00:05]} Kb5 {[%emt 0:00:06]} 39. Nd4+ {[%emt 0:00:04]} Kb4 {[%emt 0:00:03]} 40. Nf5 {[%emt 0:00:00]} Ka4 {[%emt 0:00:05]} 41. b3+ {[%emt 0:00:08]} Ka3 {[%emt 0:00:02]} 42. Nxh6 {[%emt 0:00:04]} Kxa2 {[%emt 0:00:02]} 43. b4 {[%emt 0:00:04]} Ka3 {[%emt 0:00:03]} 44. b5 {[%emt 0:00:03]} Ka4 {[%emt 0:00:03]} 45. b6 {[%emt 0:00:02]} Ka5 {[%emt 0:00:02]} 46. b7 {[%emt 0:00:03]} Ka6 {[%emt 0:00:01]} 47. b8=Q {[%emt 0:00:09]} Ka5 {[%emt 0:00:02]} 48. Kc4 {[%emt 0:00:05]} Ka4 {[%emt 0:00:02]} 49. Qb4# {[%emt 0:00:09]} 1-0

[Event "EYCC 2017"]
[Site "Mamaia"]
[Date "2017.09.08"]
[Round "4"]
[White "Jorge, Rita Maria Osorio"]
[Black "Garcia Martin, Marta"]
[Result "0-1"]
[ECO "B40"]
[WhiteElo "1923"]
[BlackElo "2360"]
[Annotator "NA"]
[PlyCount "92"]
[EventDate "2017.??.??"]
[EventType "swiss"]
[EventCountry "ROU"]
[SourceTitle "playchess.com"]
[Source "ChessBase"]
[SourceQuality "1"]
[TimeControl "40/5400+30:1800+30"]

1. e4 {[%emt 0:00:00]} c5 {[%emt 0:00:11]} 2. Nf3 {[%emt 0:00:00]} e6 {[%emt 0:00:08]} 3. d3 {[%emt 0:00:00]} Nc6 {[%emt 0:03:01]} 4. g3 {[%emt 0:00:35]} Nf6 {[%emt 0:01:50]} 5. Bg2 {[%emt 0:00:07]} Be7 {[%emt 0:00:35]} 6. O-O {[%emt 0:00:13]} d6 {[%emt 0:03:51]} 7. Re1 {[%emt 0:00:13]} O-O {[%emt 0:12:05]} 8. c3 {[%emt 0:00:08]} Bd7 {[%emt 0:00:20]} 9. Nbd2 {[%emt 0:00:19]} Qc7 {[%emt 0:01:23]} 10. a3 {[%emt 0:07:21]} Ne5 {[%emt 0:02:20]} 11. d4 {[%emt 0:08:43]} Nd3 {[%emt 0:23:17]} 12. Rf1 {[%emt 0:16:28]} cxd4 {[%emt 0:07:51]} 13. Nxd4 {[%emt 0:04:39]} Rab8 {[%emt 0:05:07]} 14. Qe2 {[%emt 0:17:31]} Nxc1 {[%emt 0:00:21]} 15. Raxc1 {[%emt 0:01:10]} Rfe8 {[%emt 0:09:18]} 16. Rfd1 {[%emt 0:03:20]} Bf8 {[%emt 0:02:24]} 17. Nf1 {[%emt 0:06:03]} b5 {[%emt 0:02:42]} 18. Ne3 {[%emt 0:15:17]} Qc5 {[%emt 0:02:24]} 19. b4 {[%emt 0:05:19]} Qb6 {[%emt 0:00:13]} 20. c4 {[%emt 0:04:51]} a6 {[%emt 0:05:48]} 21. e5 {[%emt 0:04:32]} dxe5 {[%emt 0:00:38]} 22. c5 {[%emt 0:00:16]} Qc7 {[%emt 0:00:36]} 23. c6 {[%emt 0:03:25]} exd4 {[%emt 0:01:02]} 24. cxd7 {[%emt 0:00:07]} Qxd7 {[%emt 0:00:04]} 25. Bc6 {[%emt 0:00:44]} Qa7 {[%emt 0:00:07]} 26. Bxe8 {[%emt 0:00:47]} Rxe8 {[%emt 0:00:23]} 27. Ng4 {[%emt 0:00:42]} Nd5 {[%emt 0:01:37]} 28. Rd2 {[%emt 0:00:28]} e5 {[%emt 0:01:39]} 29. Qe4 {[%emt 0:00:27]} Nc3 {[%emt 0:04:19]} 30. Qf5 {[%emt 0:00:33]} Qb8 {[%emt 0:07:56]} 31. h3 {[%emt 0:00:23]} f6 {[%emt 0:00:34]} 32. Nh2 {[%emt 0:00:37]} e4 {[%emt 0:01:23]} 33. Re1 {[%emt 0:00:23]} d3 {[%emt 0:00:46]} 34. Qd7 {[%emt 0:00:40]} Re7 {[%emt 0:00:38]} 35. Qc6 {[%emt 0:00:32]} Qc7 {[%emt 0:00:36]} 36. Qxc7 {[%emt 0:00:32]} Rxc7 {[%emt 0:00:04]} 37. Kg2 {[%emt 0:00:24]} g6 {[%emt 0:00:28]} 38. f3 {[%emt 0:00:36]} Bh6 {[%emt 0:00:42]} 39. f4 {[%emt 0:00:20]} f5 {[%emt 0:00:08]} 40. h4 {[%emt 0:00:00]} Nd5 {[%emt 0:01:00]} 41. Nf1 {[%emt 0:03:39]} Bg7 {[%emt 0:00:43]} 42. Red1 {[%emt 0:07:29]} Rc3 {[%emt 0:05:06]} 43. Ra2 {[%emt 0:01:25]} e3 {[%emt 0:01:14]} 44. Re1 {[%emt 0:01:11]} Rc2+ {[%emt 0:01:49]} 45. Rxc2 {[%emt 0:00:18]} dxc2 {[%emt 0:00:05]} 46. Kf3 {[%emt 0:00:56]} Bb2 {[%emt 0:00:15]} 0-1